[Event "Live Chess"]
[Site "Chess.com"]
[Date "2024.06.02"]
[Round "-"]
[White "GoldsmanB"]
[Black "ameetghasi100"]
[Result "0-1"]
[WhiteElo "1110"]
[BlackElo "2749"]
[TimeControl "300"]
[EndTime "7:45:01 PDT"]
[Termination "ameetghasi100 won by resignation"]

1. d4 {[%clk 0:04:57.8]} 1... g6 {[%clk 0:04:59.6]} 2. e4 {[%clk 0:04:56.3]}
2... d6 {[%clk 0:04:59.3]} 3. Nf3 {[%clk 0:04:55]} 3... c6 {[%clk 0:04:59.1]} 4.
Nc3 {[%clk 0:04:54]} 4... Nd7 {[%clk 0:04:58.9]} 5. Be3 {[%clk 0:04:52.5]} 5...
Bg7 {[%clk 0:04:58.3]} 6. Bd3 {[%clk 0:04:51.7]} 6... Ngf6 {[%clk 0:04:57.9]} 7.
e5 {[%clk 0:04:50.1]} 7... Nd5 {[%clk 0:04:57]} 8. Nxd5 {[%clk 0:04:48.4]} 8...
cxd5 {[%clk 0:04:56.8]} 9. O-O {[%clk 0:04:46.6]} 9... dxe5 {[%clk 0:04:55.4]}
10. dxe5 {[%clk 0:04:43.2]} 10... O-O {[%clk 0:04:54.7]} 11. Re1 {[%clk
0:04:39.4]} 11... Nxe5 {[%clk 0:04:51.3]} 12. Nxe5 {[%clk 0:04:37.5]} 12... Bxe5
{[%clk 0:04:50.7]} 13. Rb1 {[%clk 0:04:26]} 13... Bg7 {[%clk 0:04:49.2]} 14. Bd2
{[%clk 0:04:20.2]} 14... e5 {[%clk 0:04:48.1]} 15. Bc3 {[%clk 0:04:15.4]} 15...
a6 {[%clk 0:04:46.5]} 16. Bxe5 {[%clk 0:04:11.8]} 16... Bxe5 {[%clk 0:04:46]}
17. Rxe5 {[%clk 0:04:10.4]} 17... Be6 {[%clk 0:04:45.7]} 18. h3 {[%clk
0:03:55.4]} 18... Qd6 {[%clk 0:04:44.5]} 19. Re2 {[%clk 0:03:52.2]} 19... Rad8
{[%clk 0:04:44]} 20. c3 {[%clk 0:03:46.6]} 20... Rfe8 {[%clk 0:04:43.6]} 21. Qc2
{[%clk 0:03:35.3]} 21... d4 {[%clk 0:04:43]} 22. c4 {[%clk 0:03:33]} 22... b5
{[%clk 0:04:41.8]} 23. b3 {[%clk 0:03:29.1]} 23... bxc4 {[%clk 0:04:40.8]} 24.
bxc4 {[%clk 0:03:24.9]} 24... Qa3 {[%clk 0:04:40.2]} 25. Rb3 {[%clk 0:03:20.3]}
25... Qa5 {[%clk 0:04:39.2]} 26. Qd2 {[%clk 0:03:15.8]} 26... Qc5 {[%clk
0:04:37.2]} 27. Qb4 {[%clk 0:03:08]} 27... Qg5 {[%clk 0:04:36.3]} 28. Qd2 {[%clk
0:02:55.1]} 28... Qh4 {[%clk 0:04:34.6]} 29. Re4 {[%clk 0:02:49.3]} 29... Qf6
{[%clk 0:04:33.1]} 30. Qf4 {[%clk 0:02:45.5]} 30... Qe7 {[%clk 0:04:31.9]} 31.
Rb6 {[%clk 0:02:36.8]} 31... Qc5 {[%clk 0:04:30.1]} 32. Rxa6 {[%clk 0:02:26.8]}
32... Bxc4 {[%clk 0:04:23.3]} 33. Bxc4 {[%clk 0:02:24.8]} 33... Qxc4 {[%clk
0:04:19.8]} 34. Rxe8+ {[%clk 0:02:21.6]} 34... Rxe8 {[%clk 0:04:19.1]} 35. Rd6
{[%clk 0:02:07.8]} 35... Qxa2 {[%clk 0:04:07.7]} 36. Qxd4 {[%clk 0:02:02.4]}
36... Qb1+ {[%clk 0:04:06.8]} 37. Kh2 {[%clk 0:02:00]} 37... Qb8 {[%clk
0:04:06.4]} 38. g3 {[%clk 0:01:54.9]} 38... Qa8 {[%clk 0:04:00.7]} 39. Qd5
{[%clk 0:01:50.2]} 39... Qa7 {[%clk 0:03:58.3]} 40. Rd8 {[%clk 0:01:47]} 40...
Qxf2+ {[%clk 0:03:56.3]} 41. Kh1 {[%clk 0:01:37.8]} 41... Qe1+ {[%clk
0:03:54.5]} 42. Kg2 {[%clk 0:01:34.2]} 42... Qe2+ {[%clk 0:03:52.9]} 43. Kg1
{[%clk 0:01:32.6]} 43... Qe3+ {[%clk 0:03:51.5]} 44. Kg2 {[%clk 0:01:29.9]}
44... Rxd8 {[%clk 0:03:50.7]} 45. Qxd8+ {[%clk 0:01:27.5]} 45... Kg7 {[%clk
0:03:50.2]} 46. Qa5 {[%clk 0:01:19.4]} 46... Qe2+ {[%clk 0:03:48.2]} 47. Kg1
{[%clk 0:01:16.7]} 47... Qf3 {[%clk 0:03:46.4]} 48. Qa1+ {[%clk 0:01:14.3]}
48... Kh6 {[%clk 0:03:44]} 49. Qc1+ {[%clk 0:01:11.8]} 49... g5 {[%clk
0:03:43.4]} 50. Qc5 {[%clk 0:01:03.2]} 50... Qxg3+ {[%clk 0:03:42.3]} 51. Kf1
{[%clk 0:01:01.2]} 51... Qxh3+ {[%clk 0:03:41.6]} 52. Ke2 {[%clk 0:01:00.3]}
52... Qg2+ {[%clk 0:03:39.9]} 53. Kd3 {[%clk 0:00:59]} 53... Qf3+ {[%clk
0:03:38.9]} 54. Kc4 {[%clk 0:00:57.8]} 54... Qf4+ {[%clk 0:03:38.4]} 55. Kc3
{[%clk 0:00:55.1]} 55... Qf6+ {[%clk 0:03:36.7]} 56. Kd3 {[%clk 0:00:51.8]}
56... Qd8+ {[%clk 0:03:35.7]} 57. Kc4 {[%clk 0:00:48.6]} 57... Kg6 {[%clk
0:03:34.6]} 58. Qc6+ {[%clk 0:00:45.5]} 58... f6 {[%clk 0:03:33.9]} 59. Qe4+
{[%clk 0:00:41.9]} 59... Kh6 {[%clk 0:03:31.2]} 60. Qh1+ {[%clk 0:00:36]} 60...
Kg7 {[%clk 0:03:30.3]} 61. Qb7+ {[%clk 0:00:34.8]} 61... Kh8 {[%clk 0:03:29.4]}
62. Qf7 {[%clk 0:00:27.6]} 62... Qg8 {[%clk 0:03:28.5]} 0-1

[Event "Live Chess"]
[Site "Chess.com"]
[Date "2024.06.02"]
[Round "-"]
[White "silunn"]
[Black "JohanKjeldahl"]
[Result "0-1"]
[WhiteElo "2064"]
[BlackElo "1811"]
[TimeControl "300"]
[EndTime "7:45:04 PDT"]
[Termination "JohanKjeldahl won by resignation"]

1. e4 {[%clk 0:04:59]} 1... c5 {[%clk 0:04:58.1]} 2. Nf3 {[%clk 0:04:57.8]} 2...
e6 {[%clk 0:04:57.1]} 3. d4 {[%clk 0:04:57.5]} 3... cxd4 {[%clk 0:04:55.9]} 4.
Nxd4 {[%clk 0:04:57.2]} 4... Nc6 {[%clk 0:04:55.4]} 5. Nb3 {[%clk 0:04:54.7]}
5... Nf6 {[%clk 0:04:53.1]} 6. Qf3 {[%clk 0:04:48.9]} 6... Be7 {[%clk
0:04:47.4]} 7. Be2 {[%clk 0:04:45.8]} 7... O-O {[%clk 0:04:46]} 8. h3 {[%clk
0:04:43.5]} 8... b6 {[%clk 0:04:45]} 9. O-O {[%clk 0:04:40.5]} 9... Bb7 {[%clk
0:04:43.9]} 10. Nc3 {[%clk 0:04:39.3]} 10... Ne5 {[%clk 0:04:42.3]} 11. Qe3
{[%clk 0:04:35.3]} 11... Rc8 {[%clk 0:04:30.9]} 12. f4 {[%clk 0:04:33.2]} 12...
Nc4 {[%clk 0:04:29.8]} 13. Qd4 {[%clk 0:04:20.9]} 13... Na5 {[%clk 0:04:15.2]}
14. Nxa5 {[%clk 0:04:14.9]} 14... Bc5 {[%clk 0:04:12.8]} 15. Qxc5 {[%clk
0:04:10.3]} 15... bxc5 {[%clk 0:04:06.3]} 16. Nxb7 {[%clk 0:04:01.1]} 16... Qb6
{[%clk 0:04:00.8]} 17. e5 {[%clk 0:03:58.8]} 17... Ne8 {[%clk 0:03:35.6]} 18.
Bf3 {[%clk 0:03:46]} 18... d5 {[%clk 0:03:33]} 19. exd6 {[%clk 0:03:41.3]} 19...
Nxd6 {[%clk 0:03:32.1]} 20. Na4 {[%clk 0:03:36.2]} 20... Qc7 {[%clk 0:03:24]}
21. Nbxc5 {[%clk 0:03:30.5]} 21... Nf5 {[%clk 0:03:18.3]} 22. Bd2 {[%clk
0:02:57.9]} 22... Nd4 {[%clk 0:03:15.3]} 23. Be4 {[%clk 0:02:51.3]} 23... Rfd8
{[%clk 0:03:10.8]} 24. Bc3 {[%clk 0:02:44.1]} 24... Ne2+ {[%clk 0:03:07.5]} 25.
Kh2 {[%clk 0:02:34]} 25... Nxc3 {[%clk 0:03:05.7]} 26. bxc3 {[%clk 0:02:33.9]}
26... Qa5 {[%clk 0:03:02.3]} 27. Rfd1 {[%clk 0:02:21.6]} 27... Rxd1 {[%clk
0:02:44.8]} 28. Rxd1 {[%clk 0:02:21.5]} 28... g6 {[%clk 0:02:43.3]} 29. Rd4
{[%clk 0:01:26.6]} 29... Rxc5 {[%clk 0:02:41.7]} 30. Nxc5 {[%clk 0:01:25.1]}
30... Qxc5 {[%clk 0:02:40.5]} 31. Bd3 {[%clk 0:01:16.5]} 31... Qxc3 {[%clk
0:02:38.2]} 32. Rc4 {[%clk 0:01:13.4]} 32... Qb2 {[%clk 0:02:34]} 33. a4 {[%clk
0:01:11.5]} 33... Kg7 {[%clk 0:02:31.7]} 34. Kg3 {[%clk 0:01:08.8]} 34... h5
{[%clk 0:02:29.8]} 35. Kf3 {[%clk 0:01:08.1]} 35... h4 {[%clk 0:02:27.9]} 36.
Kg4 {[%clk 0:01:06.6]} 36... f5+ {[%clk 0:02:21.5]} 37. Kxh4 {[%clk 0:01:03.6]}
37... Qf6+ {[%clk 0:02:17.9]} 38. Kg3 {[%clk 0:00:55.3]} 38... a5 {[%clk
0:02:08.2]} 39. Rc7+ {[%clk 0:00:53]} 39... Kh6 {[%clk 0:02:07.1]} 40. Rc5
{[%clk 0:00:49.9]} 40... Qd8 {[%clk 0:02:01.7]} 41. Rc4 {[%clk 0:00:47.1]} 41...
Qd6 {[%clk 0:01:52.9]} 42. Kf3 {[%clk 0:00:43.6]} 42... Qd5+ {[%clk 0:01:50.4]}
43. Kf2 {[%clk 0:00:41.3]} 43... e5 {[%clk 0:01:37.8]} 44. fxe5 {[%clk
0:00:38.4]} 44... Qxe5 {[%clk 0:01:36.7]} 45. Kf3 {[%clk 0:00:37.8]} 45... Qd5+
{[%clk 0:01:32.6]} 46. Kf2 {[%clk 0:00:37.1]} 46... Qe5 {[%clk 0:01:29]} 47.
Rh4+ {[%clk 0:00:35.4]} 47... Kg5 {[%clk 0:01:26.5]} 48. Rc4 {[%clk 0:00:35.3]}
48... f4 {[%clk 0:01:22]} 49. Re4 {[%clk 0:00:30.2]} 49... Qc5+ {[%clk
0:01:17.4]} 50. Kf3 {[%clk 0:00:29.5]} 50... Qd5 {[%clk 0:01:02.6]} 51. Bc4
{[%clk 0:00:19.4]} 51... Qd1+ {[%clk 0:00:59.3]} 52. Be2 {[%clk 0:00:18.6]}
52... Qxc2 {[%clk 0:00:56.5]} 53. Rxf4 {[%clk 0:00:17.9]} 53... Qc3+ {[%clk
0:00:49.8]} 54. Bd3 {[%clk 0:00:16.9]} 54... Qxd3+ {[%clk 0:00:48]} 55. Kf2
{[%clk 0:00:16.1]} 55... Kxf4 {[%clk 0:00:46.1]} 0-1

[Event "Live Chess"]
[Site "Chess.com"]
[Date "2024.06.02"]
[Round "-"]
[White "NottheBishopSacrifice"]
[Black "Frankie_Badacsonyi"]
[Result "1-0"]
[WhiteElo "2340"]
[BlackElo "2368"]
[TimeControl "300"]
[EndTime "7:45:24 PDT"]
[Termination "NottheBishopSacrifice won by resignation"]

1. d4 {[%clk 0:04:57.6]} 1... Nf6 {[%clk 0:04:58.7]} 2. c4 {[%clk 0:04:56.7]}
2... e6 {[%clk 0:04:58.1]} 3. Nf3 {[%clk 0:04:55.7]} 3... Bb4+ {[%clk
0:04:56.9]} 4. Bd2 {[%clk 0:04:53.7]} 4... c5 {[%clk 0:04:56.5]} 5. Bxb4 {[%clk
0:04:51.7]} 5... cxb4 {[%clk 0:04:56.4]} 6. a3 {[%clk 0:04:51]} 6... bxa3 {[%clk
0:04:54.9]} 7. Rxa3 {[%clk 0:04:50.9]} 7... O-O {[%clk 0:04:53.6]} 8. e3 {[%clk
0:04:50.1]} 8... d6 {[%clk 0:04:52.8]} 9. Be2 {[%clk 0:04:49.1]} 9... Nc6 {[%clk
0:04:52.2]} 10. O-O {[%clk 0:04:48.4]} 10... a5 {[%clk 0:04:46.6]} 11. Nc3
{[%clk 0:04:47.6]} 11... e5 {[%clk 0:04:44.8]} 12. Nb5 {[%clk 0:04:40.8]} 12...
Bg4 {[%clk 0:04:32]} 13. h3 {[%clk 0:04:37.2]} 13... Bh5 {[%clk 0:04:28.9]} 14.
Nd2 {[%clk 0:04:32.8]} 14... Bxe2 {[%clk 0:04:25.4]} 15. Qxe2 {[%clk 0:04:32.7]}
15... Re8 {[%clk 0:04:19.9]} 16. Qd3 {[%clk 0:04:23.7]} 16... b6 {[%clk
0:04:12.1]} 17. Ne4 {[%clk 0:04:03.5]} 17... Nb4 {[%clk 0:04:08.5]} 18. Nxf6+
{[%clk 0:04:02]} 18... Qxf6 {[%clk 0:04:08.4]} 19. Qc3 {[%clk 0:03:46.3]} 19...
Rac8 {[%clk 0:04:02.8]} 20. b3 {[%clk 0:03:37.4]} 20... g6 {[%clk 0:03:39.8]}
21. Raa1 {[%clk 0:03:33.3]} 21... Kg7 {[%clk 0:03:38.5]} 22. Rad1 {[%clk
0:03:23.2]} 22... Red8 {[%clk 0:03:33.8]} 23. Rd2 {[%clk 0:03:15]} 23... exd4
{[%clk 0:03:27.9]} 24. Qxd4 {[%clk 0:03:11.8]} 24... Qxd4 {[%clk 0:03:02.9]} 25.
Rxd4 {[%clk 0:03:11.7]} 25... d5 {[%clk 0:02:47.7]} 26. Rfd1 {[%clk 0:02:59.1]}
26... Rc5 {[%clk 0:02:36.3]} 27. Nc3 {[%clk 0:02:44.8]} 27... Rdc8 {[%clk
0:02:27.4]} 28. Nxd5 {[%clk 0:02:42]} 28... Nxd5 {[%clk 0:02:26.7]} 29. Rxd5
{[%clk 0:02:39.7]} 29... a4 {[%clk 0:02:26.1]} 30. Rxc5 {[%clk 0:02:33]} 30...
Rxc5 {[%clk 0:02:26]} 31. bxa4 {[%clk 0:02:31.3]} 31... Rxc4 {[%clk 0:02:24.8]}
32. Rb1 {[%clk 0:02:30]} 32... Rxa4 {[%clk 0:02:23.1]} 33. Rxb6 {[%clk
0:02:29.6]} 33... Ra2 {[%clk 0:02:21]} 34. g4 {[%clk 0:02:28.1]} 34... Rc2
{[%clk 0:02:17.6]} 35. Kg2 {[%clk 0:02:26.6]} 35... h6 {[%clk 0:02:15]} 36. Kg3
{[%clk 0:02:24.8]} 36... Ra2 {[%clk 0:02:13.7]} 37. h4 {[%clk 0:02:20.7]} 37...
Rc2 {[%clk 0:02:12]} 38. f3 {[%clk 0:02:19.4]} 38... Re2 {[%clk 0:02:08.5]} 39.
Kf4 {[%clk 0:02:16.9]} 39... Rh2 {[%clk 0:02:06.2]} 40. Kg3 {[%clk 0:02:14.8]}
40... Re2 {[%clk 0:02:05.1]} 41. Rb3 {[%clk 0:02:05.2]} 41... Rd2 {[%clk
0:02:04]} 42. g5 {[%clk 0:02:02]} 42... hxg5 {[%clk 0:02:00.6]} 43. hxg5 {[%clk
0:02:01.9]} 43... Re2 {[%clk 0:01:59.4]} 44. Kf4 {[%clk 0:02:00.2]} 44... Rh2
{[%clk 0:01:57.9]} 45. Rb7 {[%clk 0:01:58.4]} 45... Rc2 {[%clk 0:01:55.5]} 46.
e4 {[%clk 0:01:56.7]} 46... Rc5 {[%clk 0:01:51.2]} 47. Kg4 {[%clk 0:01:54.5]}
47... Re5 {[%clk 0:01:48.8]} 48. Rb4 {[%clk 0:01:50.7]} 48... Rc5 {[%clk
0:01:47.8]} 49. Rd4 {[%clk 0:01:42.4]} 49... Kf8 {[%clk 0:01:46.9]} 50. Rd5
{[%clk 0:01:40.9]} 50... Rc2 {[%clk 0:01:43.7]} 51. Kf4 {[%clk 0:01:38.9]} 51...
Ke7 {[%clk 0:01:42.8]} 52. Ra5 {[%clk 0:01:36.8]} 52... Rc7 {[%clk 0:01:41.8]}
53. Ke5 {[%clk 0:01:35]} 53... Rb7 {[%clk 0:01:40.8]} 54. f4 {[%clk 0:01:34]}
54... Rc7 {[%clk 0:01:39.9]} 55. f5 {[%clk 0:01:29.6]} 55... gxf5 {[%clk
0:01:39.8]} 56. exf5 {[%clk 0:01:28.5]} 56... Rb7 {[%clk 0:01:38.3]} 57. f6+
{[%clk 0:01:20]} 57... Kd7 {[%clk 0:01:36.1]} 58. Kf5 {[%clk 0:01:06.7]} 58...
Rb1 {[%clk 0:01:18.1]} 59. Ra4 {[%clk 0:01:02.9]} 59... Rg1 {[%clk 0:01:05.5]}
60. Re4 {[%clk 0:00:58.9]} 1-0

[Event "Live Chess"]
[Site "Chess.com"]
[Date "2024.06.02"]
[Round "-"]
[White "CarmelJane"]
[Black "r0ad_t0-gm"]
[Result "1-0"]
[WhiteElo "2037"]
[BlackElo "2237"]
[TimeControl "300"]
[EndTime "7:45:25 PDT"]
[Termination "CarmelJane won by checkmate"]

1. e4 {[%clk 0:04:58.2]} 1... c5 {[%clk 0:04:57.9]} 2. Nf3 {[%clk 0:04:49.4]}
2... Nc6 {[%clk 0:04:57]} 3. Bb5 {[%clk 0:04:45.7]} 3... e5 {[%clk 0:04:55.7]}
4. Bxc6 {[%clk 0:04:38.5]} 4... dxc6 {[%clk 0:04:55.6]} 5. Nxe5 {[%clk
0:04:37.4]} 5... Qd4 {[%clk 0:04:53.9]} 6. Nf3 {[%clk 0:04:33.2]} 6... Qxe4+
{[%clk 0:04:52.3]} 7. Qe2 {[%clk 0:04:33.1]} 7... Qxe2+ {[%clk 0:04:49.2]} 8.
Kxe2 {[%clk 0:04:33]} 8... Bf5 {[%clk 0:04:44.3]} 9. d3 {[%clk 0:04:29.6]} 9...
O-O-O {[%clk 0:04:42.7]} 10. Re1 {[%clk 0:04:26.2]} 10... Re8+ {[%clk
0:04:41.3]} 11. Kf1 {[%clk 0:04:24.5]} 11... Rxe1+ {[%clk 0:04:41.2]} 12. Kxe1
{[%clk 0:04:22.9]} 12... c4 {[%clk 0:04:41.1]} 13. Ne5 {[%clk 0:04:16.7]} 13...
Be6 {[%clk 0:04:36]} 14. Nxc4 {[%clk 0:04:13.6]} 14... Bxc4 {[%clk 0:04:31.5]}
15. dxc4 {[%clk 0:04:13.5]} 15... Bd6 {[%clk 0:04:29.5]} 16. g3 {[%clk
0:04:11.9]} 16... Nf6 {[%clk 0:04:28.5]} 17. h3 {[%clk 0:04:10.5]} 17... Re8+
{[%clk 0:04:26.9]} 18. Kf1 {[%clk 0:04:08.7]} 18... Re4 {[%clk 0:04:26.1]} 19.
Nd2 {[%clk 0:04:00.9]} 19... Rd4 {[%clk 0:04:24.8]} 20. c3 {[%clk 0:04:00.4]}
20... Rd3 {[%clk 0:04:15.2]} 21. Ke2 {[%clk 0:03:59]} 21... Rxd2+ {[%clk
0:04:08.7]} 22. Bxd2 {[%clk 0:03:58.9]} 22... Ne4 {[%clk 0:04:06.8]} 23. Be3
{[%clk 0:03:52.1]} 23... b6 {[%clk 0:04:03.9]} 24. Rd1 {[%clk 0:03:47.6]} 24...
Kc7 {[%clk 0:04:01]} 25. Bf4 {[%clk 0:03:38.2]} 25... Bxf4 {[%clk 0:03:59.2]}
26. gxf4 {[%clk 0:03:38.1]} 26... Nd6 {[%clk 0:03:57.4]} 27. Rg1 {[%clk
0:03:36.2]} 27... g6 {[%clk 0:03:56.3]} 28. h4 {[%clk 0:03:35.6]} 28... Nxc4
{[%clk 0:03:54.3]} 29. b3 {[%clk 0:03:26.6]} 29... Nd6 {[%clk 0:03:52.9]} 30. h5
{[%clk 0:03:22.9]} 30... Ne4 {[%clk 0:03:50.7]} 31. c4 {[%clk 0:03:13.7]} 31...
Nc3+ {[%clk 0:03:49.2]} 32. Kd3 {[%clk 0:03:12.1]} 32... Nxa2 {[%clk 0:03:47.7]}
33. hxg6 {[%clk 0:03:11.3]} 33... hxg6 {[%clk 0:03:47.2]} 34. f5 {[%clk
0:03:07.2]} 34... gxf5 {[%clk 0:03:43]} 35. Rg7 {[%clk 0:03:06.1]} 35... Kd6
{[%clk 0:03:35.9]} 36. Rxf7 {[%clk 0:03:05.3]} 36... Nc1+ {[%clk 0:03:31.5]} 37.
Kc2 {[%clk 0:03:00.5]} 37... Ne2 {[%clk 0:03:30.7]} 38. Rxa7 {[%clk 0:02:57.5]}
38... c5 {[%clk 0:03:26.2]} 39. Rh7 {[%clk 0:02:53.4]} 39... Nd4+ {[%clk
0:03:21.9]} 40. Kc3 {[%clk 0:02:48.8]} 40... Ne2+ {[%clk 0:03:20.4]} 41. Kc2
{[%clk 0:02:45.8]} 41... Nd4+ {[%clk 0:03:19.4]} 42. Kb2 {[%clk 0:02:44.1]}
42... b5 {[%clk 0:03:15.9]} 43. cxb5 {[%clk 0:02:42.5]} 43... Nxb5 {[%clk
0:03:14.9]} 44. f4 {[%clk 0:02:26.2]} 44... Kd5 {[%clk 0:03:11]} 45. Re7 {[%clk
0:02:24.5]} 45... Nd4 {[%clk 0:03:04.7]} 46. Re5+ {[%clk 0:02:23]} 46... Kd6
{[%clk 0:03:04]} 47. Kc3 {[%clk 0:02:18.4]} 47... Nb5+ {[%clk 0:02:41.7]} 48.
Kd3 {[%clk 0:02:10.4]} 48... Nd4 {[%clk 0:02:39.8]} 49. Kc4 {[%clk 0:02:07.9]}
49... Nc2 {[%clk 0:02:31.2]} 50. Rxc5 {[%clk 0:01:57.6]} 50... Ke6 {[%clk
0:02:26.3]} 51. Re5+ {[%clk 0:01:54.5]} 51... Kd6 {[%clk 0:02:24.7]} 52. b4
{[%clk 0:01:48.6]} 52... Kc6 {[%clk 0:02:21]} 53. Kc3 {[%clk 0:01:44.7]} 53...
Na3 {[%clk 0:02:19.6]} 54. Rxf5 {[%clk 0:01:43.1]} 54... Nb5+ {[%clk 0:02:18.2]}
55. Rxb5 {[%clk 0:01:42.1]} 55... Kxb5 {[%clk 0:02:18.1]} 56. Kd4 {[%clk
0:01:39.4]} 56... Kc6 {[%clk 0:02:18]} 57. Ke5 {[%clk 0:01:38.6]} 57... Kd7
{[%clk 0:02:16.3]} 58. f5 {[%clk 0:01:37.9]} 58... Ke7 {[%clk 0:02:16]} 59. f6+
{[%clk 0:01:37.3]} 59... Kd7 {[%clk 0:02:15.5]} 60. b5 {[%clk 0:01:36.6]} 60...
Kc7 {[%clk 0:02:14.7]} 61. f7 {[%clk 0:01:36.1]} 61... Kb6 {[%clk 0:02:14.6]}
62. f8=Q {[%clk 0:01:35.9]} 62... Kxb5 {[%clk 0:02:14.5]} 63. Qc8 {[%clk
0:01:35.1]} 63... Kb4 {[%clk 0:02:13.7]} 64. Kd4 {[%clk 0:01:34.3]} 64... Kb3
{[%clk 0:02:13.6]} 65. Qc3+ {[%clk 0:01:32.5]} 65... Ka2 {[%clk 0:02:13]} 66.
Qb4 {[%clk 0:01:31.2]} 66... Ka1 {[%clk 0:02:12]} 67. Kc3 {[%clk 0:01:30.8]}
67... Ka2 {[%clk 0:02:11.4]} 68. Qb2# {[%clk 0:01:30.4]} 1-0

[Event "Live Chess"]
[Site "Chess.com"]
[Date "2024.06.02"]
[Round "-"]
[White "Pandreq"]
[Black "Purple1szed"]
[Result "0-1"]
[WhiteElo "1236"]
[BlackElo "2013"]
[TimeControl "300"]
[EndTime "7:45:28 PDT"]
[Termination "Purple1szed won by resignation"]

1. d4 {[%clk 0:04:56.9]} 1... d5 {[%clk 0:04:58.5]} 2. c4 {[%clk 0:04:56]} 2...
c6 {[%clk 0:04:58.2]} 3. Nc3 {[%clk 0:04:54]} 3... Nf6 {[%clk 0:04:57.9]} 4. Nf3
{[%clk 0:04:52.8]} 4... dxc4 {[%clk 0:04:57.4]} 5. a4 {[%clk 0:04:50.8]} 5...
Bf5 {[%clk 0:04:56.8]} 6. e3 {[%clk 0:04:47.5]} 6... e6 {[%clk 0:04:55.5]} 7.
Bxc4 {[%clk 0:04:45.2]} 7... Bb4 {[%clk 0:04:55]} 8. Bd2 {[%clk 0:04:43.5]} 8...
O-O {[%clk 0:04:53]} 9. O-O {[%clk 0:04:40.1]} 9... c5 {[%clk 0:04:46.8]} 10.
Re1 {[%clk 0:04:28.5]} 10... Nc6 {[%clk 0:04:44.1]} 11. e4 {[%clk 0:04:25.2]}
11... Bg6 {[%clk 0:04:42.4]} 12. e5 {[%clk 0:04:17.4]} 12... Nd5 {[%clk
0:04:33.9]} 13. Nxd5 {[%clk 0:04:15.9]} 13... Bxd2 {[%clk 0:04:33.8]} 14. Qxd2
{[%clk 0:04:10.7]} 14... exd5 {[%clk 0:04:32.8]} 15. Bb3 {[%clk 0:04:02.6]}
15... c4 {[%clk 0:04:28.8]} 16. Bc2 {[%clk 0:04:01.3]} 16... a5 {[%clk
0:04:21.5]} 17. Bxg6 {[%clk 0:03:43]} 17... hxg6 {[%clk 0:04:21.4]} 18. Qc3
{[%clk 0:03:37.9]} 18... Qb6 {[%clk 0:04:11.9]} 19. Rad1 {[%clk 0:03:31.2]}
19... Qb4 {[%clk 0:04:08.5]} 20. Re3 {[%clk 0:03:21.6]} 20... Rfe8 {[%clk
0:04:04.3]} 21. Rde1 {[%clk 0:03:08.1]} 21... Qxc3 {[%clk 0:03:46.5]} 22. bxc3
{[%clk 0:03:05.7]} 22... Nd8 {[%clk 0:03:44.9]} 23. Nd2 {[%clk 0:02:46.5]} 23...
Ne6 {[%clk 0:03:40.8]} 24. Rb1 {[%clk 0:02:42.5]} 24... Re7 {[%clk 0:03:35.2]}
25. Rb5 {[%clk 0:02:38.2]} 25... Rd7 {[%clk 0:03:30.7]} 26. Nf3 {[%clk
0:02:24.6]} 26... Ra6 {[%clk 0:03:17.2]} 27. Re2 {[%clk 0:02:18.6]} 27... Nc7
{[%clk 0:03:15.3]} 28. Rb1 {[%clk 0:02:14.4]} 28... b5 {[%clk 0:02:27.6]} 29.
axb5 {[%clk 0:02:01.4]} 29... Rb6 {[%clk 0:02:26.6]} 30. Ra2 {[%clk 0:01:56.3]}
30... Rd8 {[%clk 0:01:51.5]} 31. Rxa5 {[%clk 0:01:50.4]} 31... Rdb8 {[%clk
0:01:50.3]} 32. Nd2 {[%clk 0:01:33.4]} 32... f6 {[%clk 0:01:48.1]} 33. exf6
{[%clk 0:01:28.5]} 33... gxf6 {[%clk 0:01:48]} 34. g4 {[%clk 0:01:20.9]} 34...
Rxb5 {[%clk 0:01:47]} 35. Raxb5 {[%clk 0:01:19]} 35... Rxb5 {[%clk 0:01:46.9]}
36. Rxb5 {[%clk 0:01:16.5]} 36... Nxb5 {[%clk 0:01:46.8]} 37. Nb1 {[%clk
0:01:15.6]} 37... Kf7 {[%clk 0:01:45.6]} 38. f4 {[%clk 0:01:13.9]} 38... Ke6
{[%clk 0:01:43.7]} 39. Kf2 {[%clk 0:01:13.4]} 39... Kd6 {[%clk 0:01:41]} 40. Ke3
{[%clk 0:01:12.4]} 40... Kc6 {[%clk 0:01:38.2]} 41. h4 {[%clk 0:01:11.3]} 41...
Nd6 {[%clk 0:01:36.9]} 42. Nd2 {[%clk 0:01:02.9]} 42... Kd7 {[%clk 0:01:33.1]}
43. Nf3 {[%clk 0:01:00.4]} 43... Ke6 {[%clk 0:01:30.9]} 44. g5 {[%clk
0:00:50.9]} 44... fxg5 {[%clk 0:01:26.1]} 45. hxg5 {[%clk 0:00:45.5]} 45... Ne4
{[%clk 0:01:20.4]} 46. Ne5 {[%clk 0:00:38.4]} 46... Kf5 {[%clk 0:01:16.3]} 47.
Kf3 {[%clk 0:00:31.2]} 47... Nxc3 {[%clk 0:01:13.3]} 48. Nxg6 {[%clk 0:00:24.8]}
48... Kxg6 {[%clk 0:01:11.8]} 49. Kg4 {[%clk 0:00:23.7]} 49... Ne4 {[%clk
0:01:09.1]} 50. f5+ {[%clk 0:00:22.4]} 50... Kg7 {[%clk 0:01:07.2]} 51. f6+
{[%clk 0:00:19.9]} 51... Nxf6+ {[%clk 0:01:05.6]} 52. gxf6+ {[%clk 0:00:18.6]}
52... Kxf6 {[%clk 0:01:05.5]} 53. Kf3 {[%clk 0:00:18]} 53... Kf5 {[%clk
0:01:04.8]} 54. Ke3 {[%clk 0:00:17.3]} 54... Kg4 {[%clk 0:01:04.1]} 55. Ke2
{[%clk 0:00:15.6]} 55... Kf4 {[%clk 0:01:02.7]} 56. Kd2 {[%clk 0:00:14.7]} 56...
Kf3 {[%clk 0:00:59.4]} 57. Kc3 {[%clk 0:00:10.9]} 57... Ke3 {[%clk 0:00:58.8]}
0-1

[Event "Live Chess"]
[Site "Chess.com"]
[Date "2024.06.02"]
[Round "-"]
[White "jimwad"]
[Black "juniortay"]
[Result "0-1"]
[WhiteElo "1332"]
[BlackElo "2306"]
[TimeControl "300"]
[EndTime "7:45:29 PDT"]
[Termination "juniortay won by resignation"]

1. d4 {[%clk 0:04:58.2]} 1... d5 {[%clk 0:04:58]} 2. c4 {[%clk 0:04:56.9]} 2...
e6 {[%clk 0:04:56.1]} 3. Nc3 {[%clk 0:04:55.3]} 3... c5 {[%clk 0:04:55.2]} 4. e3
{[%clk 0:04:52.6]} 4... Nf6 {[%clk 0:04:53.4]} 5. Nf3 {[%clk 0:04:51]} 5... Nc6
{[%clk 0:04:52.6]} 6. dxc5 {[%clk 0:04:46.3]} 6... Bxc5 {[%clk 0:04:50.8]} 7.
cxd5 {[%clk 0:04:44.1]} 7... exd5 {[%clk 0:04:49.6]} 8. Bb5 {[%clk 0:04:41.9]}
8... O-O {[%clk 0:04:47.8]} 9. Bxc6 {[%clk 0:04:39.6]} 9... bxc6 {[%clk
0:04:46.7]} 10. O-O {[%clk 0:04:37.6]} 10... Re8 {[%clk 0:04:44.2]} 11. a3
{[%clk 0:04:32.3]} 11... a5 {[%clk 0:04:41.3]} 12. Na4 {[%clk 0:04:24.3]} 12...
Bd6 {[%clk 0:04:39.7]} 13. Bd2 {[%clk 0:04:20.3]} 13... Ne4 {[%clk 0:04:37.9]}
14. Bc3 {[%clk 0:04:11.7]} 14... Re6 {[%clk 0:04:31]} 15. Nd4 {[%clk 0:04:07.3]}
15... Bxh2+ {[%clk 0:04:24.9]} 16. Kh1 {[%clk 0:04:01.7]} 16... Rh6 {[%clk
0:04:12.7]} 17. Nf3 {[%clk 0:03:47.6]} 17... Bg4 {[%clk 0:03:58.9]} 18. Qe1
{[%clk 0:03:22.3]} 18... Bxf3 {[%clk 0:03:49]} 19. gxf3 {[%clk 0:03:20.5]} 19...
Qh4 {[%clk 0:03:43]} 0-1